bitfinex/quotes_BTCUSD_20260103
["timestamp","ask_amount","ask_price","bid_price","bid_amount"]
[1767455226055,0.06064765,89953.0,89945.0,0.06670735]
[1767455226255,0.01111704,89952.0,89946.0,0.01111778]
[1767455226523,0.0606479,89951.0,89945.0,0.06670735]
[1767455226737,0.04953074,89951.0,89945.0,0.0111179]
[1767455227108,0.01111728,89950.0,89943.0,0.05559049]
[1767455227519,0.0606479,89951.0,89945.0,0.0111179]
[1767455227713,0.01111728,89950.0,89943.0,0.05559049]
[1767455227918,0.01111716,89951.0,89945.0,0.0111179]
[1767455228989,0.01111728,89950.0,89943.0,0.05559049]
[1767455229194,0.01111728,89950.0,89945.0,0.0111179]
[1767455229595,0.01111728,89950.0,89943.0,0.05559049]
[1767455230312,0.01111753,89948.0,89943.0,2e-07]
[1767455231832,0.01111765,89947.0,89943.0,2e-07]
[1767455232041,0.01111753,89948.0,89943.0,2e-07]
[1767455232475,0.01111778,89946.0,89943.0,2e-07]
[1767455234052,0.01111765,89947.0,89943.0,2e-07]
[1767455234506,0.01111753,89948.0,89943.0,2e-07]
[1767455235050,0.01111765,89947.0,89943.0,2e-07]
[1767455235250,0.01111778,89946.0,89943.0,2e-07]
[1767455235454,0.06064852,89946.0,89943.0,2e-07]
[1767455235653,0.04953074,89944.0,89937.0,0.07798318]
[1767455235853,0.0111179,89945.0,89937.0,0.07798318]
[1767455236130,0.06064852,89946.0,89940.0,0.01111852]
[1767455236333,0.06064852,89946.0,89939.0,0.01111864]
[1767455236687,0.04953074,89945.0,89941.0,0.01111839]
[1767455237584,0.01111765,89947.0,89941.0,0.01111839]
[1767455237956,0.01111765,89947.0,89942.0,0.01111827]
[1767455238174,0.01111753,89948.0,89947.0,0.000999]
[1767455238410,0.01111741,89949.0,89947.0,0.000999]
[1767455238613,0.01111753,89948.0,89943.0,0.01111815]
[1767455239433,0.01111741,89949.0,89943.0,0.01111815]
[1767455239634,0.01111765,89947.0,89942.0,0.05991593]
[1767455239840,0.01111741,89949.0,89942.0,0.05991593]
[1767455240040,0.01111741,89949.0,89942.0,0.01111827]
[1767455240847,0.01111753,89948.0,89943.0,0.01111815]
[1767455241048,0.01111753,89948.0,89942.0,0.01111827]
[1767455241637,0.01111753,89948.0,89943.0,0.01111815]
[1767455241857,0.01111753,89948.0,89942.0,0.01111827]
[1767455242167,0.01111765,89947.0,89942.0,0.01111827]
[1767455242969,0.01111765,89947.0,89941.0,0.01111839]
[1767455243458,0.01111765,89947.0,89942.0,0.01111827]
[1767455243876,0.00611753,89948.0,89942.0,0.01111827]
[1767455244632,0.01111741,89949.0,89943.0,0.01111815]
[1767455244842,0.01111753,89948.0,89942.0,0.01111827]
[1767455245785,0.01111765,89951.0,89945.0,0.0111179]
[1767455245944,0.01111765,89951.0,89948.0,0.000999]
[1767455246292,0.02210678,89951.0,89945.0,0.0111179]
[1767455246538,0.01098962,89951.0,89946.0,0.01111778]
[1767455246938,0.01112,89953.0,89951.0,0.000999]
[1767455247144,0.01111802,89955.0,89951.0,0.000999]
[1767455247660,0.01111802,89955.0,89950.0,0.01111728]
[1767455247983,0.01111802,89955.0,89951.0,0.01111716]
[1767455248183,0.01104902,89955.0,89951.0,0.01111716]
[1767455248599,0.01104902,89955.0,89950.0,0.01111728]
[1767455248994,0.01104902,89955.0,89951.0,0.01111716]
[1767455249196,0.01104902,89955.0,89950.0,0.01111728]
[1767455249599,0.01104902,89955.0,89951.0,0.01111716]
[1767455249792,0.01716568,89955.0,89950.0,0.01111728]
[1767455250000,0.00604902,89955.0,89950.0,0.01111728]
[1767455250602,0.00604902,89955.0,89951.0,0.01111716]
[1767455250803,0.00604902,89955.0,89950.0,0.01111728]
[1767455251043,0.01716568,89955.0,89949.0,0.01111741]
[1767455251222,0.00604902,89955.0,89949.0,0.01111741]
[1767455251418,0.01716568,89955.0,89949.0,0.01111741]
[1767455251623,0.01111679,89954.0,89949.0,0.01111741]
[1767455251805,0.01112,89959.0,89956.0,0.01111654]
[1767455251994,0.0111158,89962.0,89955.0,0.01111666]
[1767455252195,0.0111158,89962.0,89956.0,0.01111654]
[1767455253398,0.01111592,89961.0,89956.0,0.01111654]
[1767455253761,0.0111158,89962.0,89956.0,0.01111654]
[1767455254734,0.01111592,89961.0,89955.0,0.01111666]
[1767455255090,0.0111158,89962.0,89956.0,0.01111654]
[1767455255290,0.05557428,89970.0,89962.0,0.000999]
[1767455255493,0.02223481,89970.0,89963.0,0.01111568]
[1767455255723,0.02223481,89970.0,89964.0,0.01111555]
[1767455255916,0.02259395,89970.0,89964.0,0.01111555]
[1767455256502,0.01111493,89969.0,89964.0,0.01111555]
[1767455256708,0.02259395,89970.0,89964.0,0.01111555]
[1767455256892,0.01111493,89969.0,89964.0,0.01111555]
[1767455257086,0.01111493,89969.0,89963.0,0.01111568]
[1767455257521,0.02259395,89970.0,89963.0,0.01111568]
[1767455257719,0.02259395,89970.0,89964.0,0.01111555]
[1767455257915,0.01111493,89969.0,89963.0,0.01111568]
[1767455258236,0.01111506,89968.0,89962.0,0.0111158]
[1767455258443,0.01111506,89968.0,89963.0,0.01111568]
[1767455258642,0.01111506,89968.0,89962.0,0.0111158]
[1767455259276,0.01111506,89968.0,89963.0,0.01111568]
[1767455259478,0.01111493,89969.0,89964.0,0.01111555]
[1767455259681,0.01111493,89969.0,89963.0,0.01111568]
[1767455260118,0.01111493,89969.0,89964.0,0.01111555]
[1767455260626,0.01147395,89970.0,89963.0,0.01111568]
[1767455261478,0.01147395,89970.0,89964.0,0.01111555]
[1767455261826,0.01111493,89969.0,89964.0,0.05970091]
[1767455262376,0.00035914,89970.0,89966.0,0.01111531]
[1767455262609,0.00035914,89970.0,89965.0,0.01111543]
[1767455262742,0.01147395,89970.0,89965.0,0.01111543]
[1767455263579,0.00035914,89970.0,89965.0,0.04858536]
[1767455263726,0.00035914,89970.0,89965.0,0.01111543]
[1767455263927,0.01111493,89969.0,89964.0,0.01111555]
[1767455264143,0.01147395,89970.0,89965.0,0.01111543]
[1767455264349,0.01147395,89970.0,89964.0,0.01111555]
[1767455265307,0.05557325,89972.0,89965.0,0.01111543]
[1767455265701,0.01111568,89975.0,89972.0,0.000999]
[1767455265879,0.01111568,89975.0,89970.0,0.01111481]
[1767455266078,0.02222987,89975.0,89969.0,0.01111493]
[1767455266364,0.01111432,89974.0,89969.0,0.01111493]
[1767455266597,0.01111419,89975.0,89969.0,0.01111493]
[1767455267580,0.01111419,89975.0,89970.0,0.01111481]
[1767455267779,0.01111419,89975.0,89969.0,0.01111493]
[1767455267979,0.01111407,89976.0,89970.0,0.01111481]
[1767455268181,0.0111137,89979.0,89973.0,0.01111444]
[1767455268409,0.01111395,89977.0,89972.0,0.05969992]
[1767455268615,0.0111137,89979.0,89972.0,0.01111456]
[1767455268768,0.01111395,89977.0,89972.0,0.01111456]
[1767455270217,0.01111407,89976.0,89971.0,0.01111469]
[1767455270575,0.01111395,89977.0,89972.0,0.01111456]
[1767455270910,0.01111395,89977.0,89971.0,0.01111469]
[1767455272220,0.01111395,89977.0,89972.0,0.01111456]
[1767455272728,0.01111407,89976.0,89971.0,0.01111469]
[1767455272899,0.01111407,89976.0,89970.0,0.01111481]
[1767455273096,0.01111407,89976.0,89969.0,0.06668923]
[1767455273307,0.01111419,89975.0,89970.0,0.01111481]
[1767455273476,0.01102639,89975.0,89969.0,0.06668923]
[1767455273885,0.01111432,89974.0,89969.0,0.01111493]
[1767455274046,0.01102639,89975.0,89969.0,0.01111493]
[1767455274445,0.01111432,89974.0,89969.0,0.01111493]
[1767455274648,0.01102639,89975.0,89969.0,0.01111493]
[1767455275309,0.01111456,89972.0,89967.0,0.01111395]
[1767455275521,0.0595728,89971.0,89968.0,0.01112]
[1767455275666,0.04845811,89971.0,89968.0,0.01112]
[1767455275881,0.05957267,89972.0,89968.0,0.01112]
[1767455276260,0.01111469,89971.0,89968.0,0.01112]
[1767455276461,0.01111456,89972.0,89968.0,0.01112]
[1767455277383,0.01111469,89971.0,89968.0,0.01112]
[1767455277593,0.01111456,89972.0,89968.0,0.01112]
[1767455278433,0.01111469,89971.0,89968.0,0.01112]
[1767455278719,0.01111456,89972.0,89964.0,0.01112]
[1767455278720,0.01111518,89967.0,89964.0,0.01112]
[1767455278923,0.01111543,89965.0,89964.0,0.01112]
[1767455279151,0.01111543,89965.0,89962.0,0.01112]
[1767455279504,0.0666917,89967.0,89963.0,0.02223543]
[1767455279924,0.01111531,89966.0,89963.0,0.02223543]
[1767455280286,0.01111531,89966.0,89961.0,0.01112]
[1767455280403,0.01111543,89965.0,89962.0,0.02223543]
[1767455280840,0.00823074,89966.0,89962.0,0.02223543]
[1767455281051,0.01111543,89965.0,89962.0,0.02223543]
[1767455282055,0.06669264,89965.0,89962.0,0.02123643]
[1767455282266,0.01111543,89965.0,89960.0,0.02223605]
[1767455282557,0.01111543,89965.0,89961.0,0.02123643]
[1767455282917,0.00823074,89966.0,89961.0,0.02123643]
[1767455283110,0.00823074,89966.0,89965.0,0.000999]
[1767455283624,0.01111543,89965.0,89961.0,0.02123643]
[1767455284247,0.00823074,89966.0,89961.0,0.02123643]
[1767455284463,0.01111555,89964.0,89961.0,0.02123643]
[1767455285462,0.01111555,89964.0,89961.0,0.02159557]
[1767455286838,0.01111555,89964.0,89961.0,0.00035914]
[1767455288606,0.06380767,89966.0,89961.0,0.00035914]
[1767455288961,0.01111555,89964.0,89961.0,0.00035914]
[1767455289748,0.05557879,89963.0,89961.0,0.00035914]
[1767455289988,0.01111642,89957.0,89951.0,0.05558543]
[1767455290142,0.01140677,89957.0,89953.0,0.01112]
[1767455290559,0.00029035,89957.0,89953.0,0.01112]
[1767455290759,0.00029035,89957.0,89953.0,0.02223691]
[1767455291091,3.5e-07,89957.0,89954.0,0.01111679]
[1767455293372,3.5e-07,89957.0,89953.0,0.01112]
[1767455293587,3.5e-07,89957.0,89951.0,0.01112]
[1767455293588,0.00029,89954.0,89951.0,0.01112]
[1767455293789,0.01111654,89956.0,89951.0,0.02223716]
[1767455293994,0.01111677,89957.0,89951.0,0.02223716]
[1767455294398,0.01111629,89958.0,89952.0,0.01111704]
[1767455294650,0.00021812,89952.0,89951.0,0.01112]
[1767455294829,0.00021812,89952.0,89951.0,0.02231699]
[1767455295018,0.01111629,89958.0,89951.0,0.02231699]
[1767455295019,0.01111642,89957.0,89952.0,0.01111704]
[1767455295662,0.01111654,89956.0,89951.0,0.01119983]
[1767455295816,0.01111642,89957.0,89951.0,0.02231699]
[1767455296228,0.06669831,89958.0,89952.0,0.01111704]
[1767455296847,0.06669831,89958.0,89953.0,0.01111691]
[1767455297167,0.06669559,89961.0,89953.0,0.01111691]
[1767455297168,0.01111617,89959.0,89953.0,0.01111691]
[1767455298968,0.01111629,89958.0,89953.0,0.01111691]
[1767455301538,0.05386782,89957.0,89953.0,0.01111691]
[1767455301949,0.01111629,89958.0,89953.0,0.01111691]
[1767455303860,0.01111617,89959.0,89953.0,0.01111691]
[1767455304067,0.01111642,89957.0,89953.0,0.01111691]
[1767455304794,0.01111629,89958.0,89953.0,0.01111691]
[1767455305240,0.01111617,89959.0,89954.0,0.01111679]
[1767455306354,0.01111629,89958.0,89953.0,0.01111691]
[1767455310344,0.000218,89953.0,89951.0,0.07790235]
[1767455311169,0.01111642,89957.0,89952.0,0.01111704]
[1767455311525,0.01111666,89955.0,89951.0,0.01119983]
[1767455311669,0.06381638,89956.0,89951.0,0.01119983]
[1767455312183,0.0082332,89956.0,89951.0,0.02231699]
[1767455312378,0.0082332,89956.0,89947.0,0.06670573]
[1767455312379,0.01111728,89950.0,89943.0,0.01111815]
[1767455312618,0.01033628,89950.0,89948.0,0.01112]
[1767455313403,0.01111716,89951.0,89948.0,0.08964262]
[1767455313622,0.05558561,89952.0,89948.0,0.08864362]
[1767455314031,0.01111716,89951.0,89948.0,0.08864362]
[1767455314987,0.01111716,89951.0,89948.0,0.010121]
[1767455319305,0.05558561,89952.0,89948.0,0.010121]
[1767455320011,0.01111716,89951.0,89948.0,0.010121]
[1767455322581,0.01111679,89954.0,89951.0,0.000999]
[1767455322885,0.01111679,89954.0,89951.0,0.0009551]
[1767455323245,0.01111666,89955.0,89949.0,0.01111741]
[1767455323531,0.01111679,89954.0,89949.0,0.08964003]
[1767455323704,0.01111679,89954.0,89949.0,0.01111741]
[1767455323885,0.01016179,89954.0,89949.0,0.01111741]
[1767455325591,0.01111691,89953.0,89948.0,0.02123853]
[1767455325797,0.000999,89949.0,89948.0,0.02123853]
[1767455325995,0.0009087,89949.0,89948.0,0.010121]
[1767455326204,0.01111704,89952.0,89948.0,0.010121]
[1767455327818,0.01111716,89951.0,89948.0,0.010121]
[1767455328684,0.00711704,89952.0,89948.0,0.010121]
[1767455329027,0.01111716,89951.0,89948.0,0.010121]
[1767455331172,0.01111716,89951.0,89946.0,0.02223778]
[1767455332643,0.01111716,89951.0,89947.0,0.01111765]
[1767455334506,0.00711704,89952.0,89947.0,0.01111765]
[1767455334998,0.01111716,89951.0,89947.0,0.01111765]
[1767455335155,0.00711704,89952.0,89947.0,0.01111765]
[1767455335674,0.00711704,89952.0,89946.0,0.02223778]
[1767455336967,0.01111716,89951.0,89946.0,0.02223778]
[1767455337369,0.01111728,89950.0,89946.0,0.02223778]
[1767455337952,0.00711704,89952.0,89950.0,9e-05]
[1767455338156,0.01111691,89953.0,89950.0,9e-05]
[1767455338354,0.01111691,89953.0,89948.0,0.01111753]
[1767455338835,0.01111691,89953.0,89949.0,0.01111741]
[1767455339050,0.01111691,89953.0,89948.0,0.01111753]
[1767455339235,0.01016179,89954.0,89949.0,0.01111741]
[1767455340214,0.01111691,89953.0,89948.0,0.01111753]
[1767455340836,0.01016179,89954.0,89949.0,0.01111741]
[1767455341056,0.01111666,89955.0,89953.0,9e-05]
[1767455341454,0.01111679,89954.0,89949.0,0.01111741]
[1767455342242,0.01111679,89954.0,89950.0,0.01111728]
[1767455342456,0.01111642,89957.0,89951.0,0.01111716]
[1767455342600,0.01111642,89957.0,89954.0,9e-05]
[1767455343044,0.01111642,89957.0,89952.0,0.01111704]
[1767455343251,0.01111629,89958.0,89952.0,0.01111704]
[1767455343447,0.01111654,89956.0,89951.0,0.11032419]
[1767455343832,0.06669834,89958.0,89951.0,0.11032419]
[1767455343833,0.01111642,89957.0,89952.0,0.01111704]
[1767455344028,0.01111654,89956.0,89951.0,0.11032419]
[1767455344432,0.01111642,89957.0,89952.0,0.01111704]
[1767455344851,0.01111642,89957.0,89951.0,0.11032419]
[1767455345152,0.01111642,89957.0,89952.0,0.01111704]
[1767455346006,0.000909,89952.0,89951.0,0.01111716]
[1767455346210,0.01111666,89955.0,89950.0,0.01111728]
[1767455346566,0.01111654,89956.0,89951.0,0.01111716]
[1767455346768,0.01111679,89954.0,89949.0,0.01111741]
[1767455346956,0.000909,89951.0,89948.0,0.01111753]
[1767455347164,0.00083998,89951.0,89948.0,0.01111753]
[1767455347367,0.01111704,89952.0,89947.0,0.01111765]
[1767455347610,0.01111716,89951.0,89945.0,0.0111179]
[1767455347808,0.09769344,89950.0,89947.0,0.01111765]
[1767455347986,0.10881048,89952.0,89947.0,0.01111765]
[1767455348189,0.1088106,89951.0,89946.0,0.02223778]
[1767455348417,0.01111716,89951.0,89946.0,0.02223778]
[1767455348590,0.01111704,89952.0,89947.0,0.01111765]
[1767455348794,0.01111704,89952.0,89947.0,0.01027765]
[1767455349135,0.01111716,89951.0,89946.0,0.02223778]
[1767455350408,0.01111704,89952.0,89947.0,0.01111765]
[1767455350981,0.01023395,89953.0,89947.0,0.01111765]
[1767455351834,0.01111704,89952.0,89947.0,0.01111765]
[1767455352414,0.01111704,89952.0,89946.0,0.01404159]
[1767455352802,0.01111704,89952.0,89947.0,0.01111765]
[1767455353562,0.10881048,89952.0,89947.0,0.01111765]
[1767455353916,0.09769344,89952.0,89948.0,0.01111753]
[1767455355583,0.10881048,89952.0,89947.0,0.01111765]
[1767455356103,0.01111704,89952.0,89948.0,0.01111753]
[1767455356306,0.10792739,89953.0,89948.0,0.01111753]
[1767455356911,0.01111704,89952.0,89948.0,0.01111753]
[1767455357210,0.10881048,89952.0,89947.0,0.01111765]
[1767455357406,0.01111716,89951.0,89946.0,0.01111778]
[1767455357611,0.1088106,89951.0,89946.0,0.01111778]
[1767455357836,0.1088106,89951.0,89947.0,0.01111765]
[1767455358125,0.09769344,89951.0,89947.0,0.01111765]
[1767455358760,0.08269344,89951.0,89947.0,0.01111765]
[1767455358990,0.0938106,89951.0,89946.0,0.01111778]
[1767455360076,0.10881072,89950.0,89946.0,0.01111778]
[1767455360291,0.01111741,89949.0,89945.0,0.0111179]
[1767455360463,0.09769344,89949.0,89945.0,0.0111179]
[1767455360963,0.10881085,89949.0,89944.0,0.01111802]
[1767455361146,0.09769344,89949.0,89945.0,0.0111179]
[1767455361576,0.09769344,89949.0,89946.0,0.01111778]
[1767455361939,0.09669444,89949.0,89946.0,0.01111778]
[1767455363075,0.09669444,89949.0,89943.0,0.00035936]
[1767455363076,0.01111778,89946.0,89943.0,0.00035936]
[1767455363825,0.09769344,89944.0,89943.0,1e-08]
[1767455364027,0.01111852,89940.0,89937.0,0.0112702]
[1767455364158,0.01140873,89940.0,89937.0,0.0112702]
[1767455364363,0.01133971,89940.0,89937.0,0.0112702]
[1767455364567,0.00035923,89940.0,89937.0,0.0001502]
[1767455364981,0.01147775,89940.0,89937.0,0.0001502]
[1767455365352,0.00035923,89940.0,89937.0,0.0001502]
[1767455365768,0.01147775,89940.0,89937.0,0.0001502]
[1767455366444,0.06671098,89941.0,89937.0,0.0001502]
[1767455366724,0.06671098,89941.0,89937.0,0.00019812]
[1767455367501,0.01111827,89942.0,89937.0,0.01131701]
[1767455368118,0.01111839,89941.0,89937.0,0.00019812]
[1767455369035,0.01111839,89941.0,89937.0,0.01131701]
[1767455369748,0.01111839,89941.0,89937.0,0.00019812]
[1767455370102,0.01111839,89941.0,89937.0,0.01131701]
[1767455370513,0.01111815,89943.0,89938.0,0.01111877]
[1767455370919,0.01111815,89943.0,89939.0,0.01111864]
[1767455371633,0.01111815,89943.0,89938.0,0.01111877]
[1767455371950,0.01111815,89943.0,89939.0,0.01111864]
[1767455372134,0.01111815,89943.0,89938.0,0.01111877]
[1767455373221,0.0111179,89945.0,89940.0,0.01111852]
[1767455373578,0.01111802,89944.0,89939.0,0.01111864]
[1767455374121,0.00623592,89945.0,89939.0,0.01111864]
[1767455374518,0.01111815,89943.0,89938.0,0.01111877]
[1767455375507,0.01111827,89942.0,89938.0,0.01111877]
[1767455375994,0.01111839,89941.0,89937.0,0.01131701]
[1767455376168,0.01111827,89942.0,89937.0,0.01131701]
[1767455376490,0.01111839,89941.0,89937.0,0.01131701]
[1767455376692,0.01111827,89942.0,89937.0,0.01131701]
[1767455377862,0.01111839,89941.0,89937.0,0.00019812]
[1767455378056,0.01111839,89941.0,89937.0,0.01111889]
[1767455378884,0.01111852,89940.0,89936.0,0.01111901]
[1767455379486,0.01111839,89941.0,89936.0,0.01111901]
[1767455379987,0.01111815,89943.0,89937.0,0.01111889]
[1767455380161,0.01111827,89942.0,89938.0,0.01111877]
[1767455380330,0.01111815,89943.0,89938.0,0.01111877]
[1767455380535,0.01111815,89943.0,89939.0,0.01111864]
[1767455381358,0.01111802,89944.0,89939.0,0.01111864]
[1767455381839,0.05558998,89945.0,89939.0,0.01111864]
[1767455382858,0.01111802,89944.0,89939.0,0.01111864]
[1767455387166,0.01111802,89944.0,89940.0,0.01111852]
[1767455388979,0.01111802,89944.0,89939.0,0.01111864]
[1767455389198,0.01111815,89943.0,89938.0,0.01111877]
[1767455389404,0.01111827,89942.0,89938.0,0.01111877]
[1767455389605,0.06670855,89944.0,89937.0,0.01111889]
[1767455389782,0.01111815,89943.0,89937.0,0.01111889]
[1767455390686,0.01111827,89942.0,89937.0,0.01111889]
[1767455390908,0.01111815,89943.0,89939.0,0.01111864]
[1767455391086,0.01111802,89944.0,89940.0,0.01111852]
[1767455391407,0.06670788,89945.0,89940.0,0.01111852]
[1767455392945,0.06670788,89945.0,89940.0,0.01097507]
[1767455394614,0.01111802,89944.0,89939.0,0.01111864]
[1767455395098,0.01111815,89943.0,89938.0,0.01111877]
[1767455395517,0.01111827,89942.0,89937.0,0.01111889]
[1767455395829,0.01111827,89942.0,89938.0,0.01111877]
[1767455395978,0.01111815,89943.0,89938.0,0.01111877]
[1767455396812,0.01111815,89943.0,89938.0,0.01107487]
[1767455397236,0.01111839,89941.0,89935.0,0.06671449]
[1767455397565,0.01111815,89943.0,89941.0,0.000999]
[1767455398116,0.01111827,89942.0,89937.0,0.01111889]
[1767455398561,0.01111827,89942.0,89938.0,0.01111877]
[1767455399937,0.01111815,89943.0,89938.0,0.01111877]
[1767455400952,0.01111802,89944.0,89943.0,0.000999]
[1767455401156,0.01111815,89943.0,89938.0,0.01111877]
[1767455401363,0.01111827,89942.0,89937.0,0.066713]
[1767455401544,0.01111852,89940.0,89936.0,0.01111901]
[1767455401900,0.01111852,89940.0,89935.0,0.01111914]
[1767455402061,0.01111852,89940.0,89936.0,0.01111901]
[1767455402238,0.01111877,89938.0,89934.0,0.01135592]
[1767455402444,0.01111864,89939.0,89934.0,0.01135592]
[1767455402680,0.01111877,89938.0,89934.0,0.01135592]
[1767455403046,0.01111852,89940.0,89935.0,0.01111914]
[1767455403379,0.01111864,89939.0,89934.0,0.01135592]
[1767455404403,0.01111889,89937.0,89934.0,0.00023666]
[1767455404704,0.06671386,89937.0,89934.0,0.00023666]
[1767455404937,0.01111889,89937.0,89934.0,0.00023666]
[1767455405328,0.06671301,89938.0,89934.0,0.00023666]
[1767455405932,0.01111889,89937.0,89934.0,0.00023666]
[1767455408297,0.06671301,89938.0,89934.0,0.00023666]
[1767455408695,0.01111889,89937.0,89934.0,0.00023666]
[1767455409098,0.01111877,89938.0,89934.0,0.00023666]
[1767455409352,0.01111889,89937.0,89934.0,0.00023666]
[1767455409533,0.01111877,89938.0,89934.0,0.00023666]
[1767455412956,0.06671234,89939.0,89934.0,0.00023666]
[1767455413833,0.01111877,89938.0,89934.0,0.00023666]
[1767455416716,0.01111877,89938.0,89934.0,0.01135592]
[1767455417294,0.01111889,89937.0,89934.0,0.00023666]
[1767455418825,0.01111889,89937.0,89934.0,0.1030697]
[1767455419588,0.01111889,89937.0,89934.0,0.00023666]
[1767455420605,0.01111877,89938.0,89934.0,0.00023666]
[1767455420804,0.01111889,89937.0,89934.0,0.00023666]
[1767455422591,0.01111877,89938.0,89934.0,0.01135592]
[1767455423229,0.01111877,89938.0,89934.0,0.00023666]
[1767455424148,0.01111889,89937.0,89934.0,0.00023666]
[1767455425258,0.01111877,89938.0,89934.0,0.00023666]
[1767455425646,0.01111877,89938.0,89934.0,0.01135592]
[1767455426363,0.01111877,89938.0,89934.0,0.00023666]
[1767455426954,0.01111877,89938.0,89934.0,0.01135592]
[1767455427440,0.01111877,89938.0,89934.0,0.00023666]
[1767455427649,0.01111877,89938.0,89934.0,0.01135592]
[1767455428263,0.06283124,89939.0,89934.0,0.01135592]
[1767455428979,0.01111877,89938.0,89934.0,0.01135592]
[1767455429562,0.01111877,89938.0,89934.0,0.00023666]
[1767455429762,0.01111889,89937.0,89934.0,0.00023666]
[1767455430576,0.01111889,89937.0,89928.0,0.0555996]
[1767455430577,0.01111951,89932.0,89925.0,9e-05]
[1767455430785,0.06672065,89928.0,89927.0,0.10432065]
[1767455431091,0.06672065,89928.0,89926.0,0.01112]
[1767455431092,0.06665843,89928.0,89926.0,0.01112]
[1767455431285,0.06565943,89928.0,89926.0,0.11228302]
[1767455431710,0.01005878,89928.0,89926.0,0.11228302]
[1767455431910,0.01111988,89929.0,89926.0,0.11228302]
[1767455432488,0.01111988,89929.0,89926.0,0.11213959]
[1767455432885,0.01111988,89929.0,89926.0,0.10116302]
[1767455433240,0.06671981,89929.0,89926.0,0.11228302]
[1767455436192,0.05271981,89929.0,89926.0,0.11228302]
[1767455436390,0.06383969,89929.0,89926.0,0.11228302]
[1767455438195,0.06383969,89929.0,89926.0,0.01112]
[1767455438598,0.06383969,89929.0,89926.0,0.06215373]
[1767455439299,0.01111975,89930.0,89926.0,0.01112]
[1767455439494,0.01111963,89931.0,89926.0,0.02224025]
[1767455439695,0.01111975,89930.0,89926.0,0.06210793]
[1767455440136,0.01111975,89930.0,89927.0,0.05098793]
[1767455440409,0.01111963,89931.0,89927.0,0.01112013]
[1767455440717,0.01111975,89930.0,89926.0,0.01112025]
[1767455440874,0.01122722,89932.0,89927.0,0.01112013]
[1767455441077,0.01111963,89931.0,89927.0,0.01112013]
[1767455444121,0.00834685,89932.0,89928.0,0.01112]
[1767455445422,0.00834685,89932.0,89927.0,0.01112013]
[1767455446037,0.01111963,89931.0,89927.0,0.01112013]
[1767455448436,0.00834685,89932.0,89927.0,0.01112013]
[1767455448839,0.00834685,89932.0,89928.0,0.01112]
[1767455449240,0.00834685,89932.0,89928.0,0.01097663]
[1767455450094,0.01111963,89931.0,89927.0,0.01112013]
[1767455450265,0.00834685,89932.0,89927.0,0.01112013]
[1767455450588,0.00834685,89932.0,89928.0,0.01112]
[1767455451363,0.00010771,89932.0,89929.0,0.01111988]
[1767455451685,0.01111951,89932.0,89928.0,0.01112]
[1767455452604,0.05559556,89936.0,89931.0,0.01111963]
[1767455452605,0.06671457,89936.0,89931.0,0.01111963]
[1767455452797,0.01111901,89936.0,89931.0,0.01147886]
[1767455453100,0.01111877,89938.0,89934.0,0.01111926]
[1767455453483,0.01111889,89937.0,89933.0,0.01111938]
[1767455453879,0.01111901,89936.0,89932.0,0.01111951]
[1767455455212,0.000999,89932.0,89931.0,0.00035923]
[1767455455639,0.01111914,89935.0,89931.0,0.00035923]
[1767455456389,0.01111914,89935.0,89931.0,0.01147886]
[1767455457125,0.06671558,89934.0,89931.0,0.00035923]
[1767455457313,0.01111914,89935.0,89931.0,0.01147886]
[1767455458747,0.01111901,89936.0,89931.0,0.01147886]
[1767455459155,0.06671382,89937.0,89931.0,0.01147886]
[1767455459938,0.01111901,89936.0,89931.0,0.01147886]
[1767455461048,0.01111914,89935.0,89931.0,0.01147886]
[1767455461795,0.01111889,89937.0,89932.0,0.01111951]
[1767455461953,0.01111901,89936.0,89932.0,0.01111951]
[1767455463225,0.01111914,89935.0,89931.0,0.01147886]
[1767455463426,0.01111901,89936.0,89932.0,0.01111951]
[1767455466794,0.06483277,89937.0,89932.0,0.01111951]
[1767455467847,0.01111901,89936.0,89932.0,0.01111951]
[1767455470246,0.01111914,89935.0,89932.0,0.01111951]
[1767455471160,0.01111914,89935.0,89931.0,0.01147886]
[1767455474604,0.06671451,89936.0,89931.0,0.01147886]
[1767455474888,0.01111914,89935.0,89931.0,0.01147886]
[1767455476483,0.01111926,89934.0,89931.0,0.01147886]
[1767455478184,0.01111914,89935.0,89931.0,0.01147886]
[1767455478691,0.01111914,89935.0,89932.0,0.01111951]
[1767455479976,0.01111901,89936.0,89932.0,0.01111951]
[1767455480180,0.01111877,89938.0,89933.0,0.01111938]
[1767455481000,0.01103097,89938.0,89934.0,0.01111926]
[1767455481363,0.01111889,89937.0,89933.0,0.01111938]
[1767455482365,0.06662533,89938.0,89933.0,0.01111938]
[1767455482903,0.01111889,89937.0,89933.0,0.01111938]
[1767455483251,0.01111901,89936.0,89933.0,0.01111938]
[1767455487125,0.01111889,89937.0,89933.0,0.01111938]
[1767455487537,0.01111901,89936.0,89932.0,0.01111951]
[1767455489087,0.01111901,89936.0,89933.0,0.01111938]
[1767455489399,0.01111889,89937.0,89933.0,0.01111938]
[1767455490156,0.09755796,89937.0,89933.0,0.01111938]
[1767455490373,0.06662533,89938.0,89933.0,0.01111938]
[1767455490561,0.16759518,89938.0,89933.0,0.01111938]
[1767455490759,0.10096985,89937.0,89933.0,0.01111938]
[1767455490961,0.11208874,89937.0,89933.0,0.01111938]
[1767455491202,0.01111889,89937.0,89933.0,0.01111938]
[1767455491435,0.01111901,89936.0,89932.0,0.01111951]
[1767455491836,0.01111901,89936.0,89933.0,0.01111938]
[1767455493027,0.000999,89933.0,89932.0,0.01111951]
[1767455493240,0.01111901,89936.0,89932.0,0.01111951]
[1767455497442,0.01111901,89936.0,89933.0,0.01111938]
[1767455497644,0.06283277,89937.0,89933.0,0.01111938]
[1767455497821,0.0072379,89937.0,89933.0,0.01111938]
[1767455498244,0.10820775,89937.0,89933.0,0.01111938]
[1767455499831,0.01111901,89936.0,89933.0,0.01111938]
[1767455500028,0.10096985,89935.0,89933.0,0.01111938]
[1767455500206,0.01111901,89936.0,89933.0,0.01111938]
[1767455500555,0.11208886,89936.0,89933.0,0.01111938]
[1767455500758,0.01111901,89936.0,89933.0,0.01111938]
[1767455500907,0.11208886,89936.0,89933.0,0.01111938]
[1767455501314,0.01111901,89936.0,89933.0,0.01111938]
[1767455501742,0.10096985,89935.0,89933.0,0.01111938]
[1767455501942,0.01111901,89936.0,89933.0,0.01111938]
[1767455502373,0.11208886,89936.0,89933.0,0.01111938]
[1767455502564,0.01111901,89936.0,89933.0,0.01111938]
[1767455502746,0.11208886,89936.0,89933.0,0.01111938]
[1767455502956,0.01111901,89936.0,89933.0,0.01111938]
[1767455503686,0.11208886,89936.0,89933.0,0.01111938]
[1767455504203,0.01111901,89936.0,89933.0,0.01111938]
[1767455504800,0.10096985,89936.0,89933.0,0.01111938]
[1767455505107,0.16759518,89938.0,89933.0,0.01111938]
[1767455505265,0.11208874,89937.0,89933.0,0.01111938]
[1767455505464,0.10208874,89937.0,89933.0,0.01111938]
[1767455506690,0.000999,89933.0,89932.0,0.01111951]
[1767455506894,0.11208886,89936.0,89932.0,0.01111951]
[1767455507262,0.01111901,89936.0,89932.0,0.01111951]